[Event "39th Muensterland Open 2022"]
[Site "Muenster"]
[Date "2022.10.06"]
[Round "7.3"]
[White "Bungarten, Jona"]
[Black "Althoff, Ralph"]
[Result "1-0"]
[ECO "B21"]
[WhiteElo "2010"]
[BlackElo "1951"]
[Annotator "TA"]
[PlyCount "69"]
[EventDate "2022.10.01"]
[EventType "swiss"]
[EventCountry "GER"]
[SourceTitle "playchess.com"]
[Source "ChessBase"]
[SourceQuality "1"]
[TimeControl "40/5400+30:1800+30"]

{[%evp 13,69,-16,-7,0,-19,-46,-26,-34,-30,-50,-63,-60,-58,-51,-66,-85,-82,-82,-82,-107,-62,-77,-67,-104,-99,-108,-57,-56,0,0,32,41,48,39,138,126,284,279,286,271,276,285,1888,1834,29989,1785,1627,1077,1132,1124,1103,1056,29987,29988,29991,29992,29992,29991]} 1. e4 {[%emt 0:00:01]} c5 {[%emt 0:00:06]} 2. d4 {[%emt 0:00:40]} cxd4 {[%emt 0:00:08]} 3. c3 {[%emt 0:00:05]} dxc3 {[%emt 0:00:05]} 4. Nxc3 {[%emt 0:00:09]} Nc6 {[%emt 0:00:04]} 5. Nf3 {[%emt 0:00:14]} d6 {[%emt 0:00:12]} 6. Bc4 {[%emt 0:00:18]} a6 {[%emt 0:00:15]} 7. O-O {[%emt 0:00:18]} Nf6 {[%emt 0:00:07]} 8. Bf4 $1 {[%emt 0:00:26] B21: Sicilian: 2 f4 and Morra Gambit.} Bg4 {[%emt 0:00:48]} 9. Qb3 {[%emt 0:06:00]} e6 $1 {[%emt 0:00:37]} 10. Be2 {[%emt 0:10:26] Black has an edge.} (10. Qxb7 Na5 11. Qb4 e5 $17) 10... Qb8 {[%emt 0:06:38]} 11. Rfd1 {[%emt 0:01:54][%cal Oe4e5]} Be7 {[%emt 0:01:01]} 12. h3 {[%emt 0:00:43]} Bxf3 {[%emt 0:00:38]} 13. Bxf3 {[%emt 0:00:07]} O-O {[%emt 0:00:38][%cal Bh8f8,Bf8c8,Bc8c6][%mdl 32] [#]} 14. Rd2 $146 {[%emt 0:01:50]} ({Predecessor:} 14. Na4 b5 15. e5 dxe5 16. Bxc6 exf4 17. Bxa8 Qxa8 18. Nc3 f3 19. gxf3 Qb8 20. a4 {0-1 (44) Zapfel,P (1946)-Petz,J (2127) ICCF email 2008}) 14... Nd7 {[%emt 0:02:55]} 15. Rad1 {[%emt 0:05:37][%cal Rf4d6]} Nce5 {[%emt 0:00:35]} 16. Be2 {[%emt 0:01:08]} Rc8 {[%emt 0:02:37]} 17. a4 {[%emt 0:02:56]} Rc6 {[%emt 0:05:06]} 18. Bxe5 {[%emt 0:02:04]} Nxe5 {[%emt 0:00:23]} 19. f4 {[%emt 0:00:13]} Qa7+ {[%emt 0:02:40]} ({Better is} 19... Nd7 $17 20. g3 Qc7) 20. Kh1 $15 {[%emt 0:04:04]} Ng6 {[%emt 0:09:36]} (20... Nd7 $1 $15) 21. f5 $1 $11 {[%emt 0:01:44]} Nf4 {[%emt 0:10:35]} 22. fxe6 {[%emt 0:02:34]} Nxe6 {[%emt 0:02:18]} 23. Bc4 $36 {[%emt 0:01:24][%cal Be2c4,Bc4d5,Bd5f7][%mdl 2080] White fights for an advantage.} Ng5 {[%emt 0:05:26] [#]} ({Black should try} 23... Nc5 $14 24. Bxf7+ Kh8) 24. h4 $1 $16 {[%emt 0:02:50] White is more active.} Qc5 {[%emt 0:03:40] [#] This move loses the game for Black.} (24... Rxc4 $16 {keeps fighting.} 25. Qxc4 Ne6) 25. Bd5 $1 $18 {[%emt 0:04:00]} ({Worse is} 25. hxg5 Qxc4 26. Qxb7 Re8 $14) ({Not} 25. Qxb7 Ra7 26. Qb3 Qxc4 $16) 25... Rb6 {[%emt 0:00:45]} 26. Qa2 {[%emt 0:00:15]} h6 {[%emt 0:27:34]} 27. hxg5 {[%emt 0:00:31]} hxg5 {[%emt 0:00:02]} (27... Bxg5 28. Bxf7+ Kh8) 28. Bxf7+ {[%emt 0:00:39]} Kh7 {[%emt 0:00:48]} 29. Nd5 {[%emt 0:01:18]} (29. Qe6 $142 d5 30. Bg6+ Kh6 31. Qh3+ Kxg6 32. Qf5+ Kh6 33. g3 g6 34. Qf7) 29... g6 {[%emt 0:01:11]} 30. Nxe7 {[%emt 0:00:55]} Rh8 {[%emt 0:01:27]} 31. Nxg6 {[%emt 0:03:34]} d5 {[%emt 0:00:13]} 32. Rd4 {[%emt 0:00:13]} Qc2 {[%emt 0:11:37]} 33. Qxd5 {[%emt 0:03:13] White mates.} Qf2 {[%emt 0:02:51]} 34. Qxg5 {[%emt 0:00:33]} (34. R4d2 $2 {gets mated.} Kg7+ 35. Nxh8 Rh6+) 34... Qxf7 {[%emt 0:02:48]} 35. Rd7 {[%emt 0:00:18] Weighted Error Value: White=0.06 (flawless) /Black=0.63} 1-0

[Event "39th Muensterland Open 2022"]
[Site "Muenster"]
[Date "2022.10.06"]
[Round "7.4"]
[White "Torres-Kuckel, Rafael"]
[Black "Holtel, Jasper"]
[Result "1/2-1/2"]
[ECO "A33"]
[WhiteElo "2096"]
[BlackElo "2413"]
[Annotator "TA"]
[PlyCount "61"]
[EventDate "2022.10.01"]
[EventType "swiss"]
[EventCountry "GER"]
[SourceTitle "playchess.com"]
[Source "ChessBase"]
[SourceQuality "1"]
[TimeControl "40/5400+30:1800+30"]

{[%evp 11,61,19,24,10,7,0,12,8,4,-9,0,0,0,0,8,-30,-30,-30,-30,-16,-14,-15,-13,-19,-20,-19,-19,-20,-14,-14,-18,-18,-8,-8,-8,-8,-8,-8,0,0,43,32,78,0,20,2,2,2,5,0,0,0]} 1. Nf3 {[%emt 0:00:03]} c5 {[%emt 0:00:14]} 2. c4 {[%emt 0:00:53]} Nc6 {[%emt 0:00:06]} 3. d4 {[%emt 0:01:42]} cxd4 {[%emt 0:00:13]} 4. Nxd4 {[%emt 0:00:05]} Nf6 {[%emt 0:00:06]} 5. Nc3 {[%emt 0:00:23]} e6 {[%emt 0:00:43]} 6. g3 {[%emt 0:02:23]} Qb6 {[%emt 0:00:42]} 7. e3 {[%emt 0:01:00] A33: Symmetrical English: 2 Nf3 Nf6 3 d4 cxd4 4 Nxd4 e6 5 Nc3 Nc6.} (7. Nb3 $5 {[%cal Rf1g2]}) 7... d5 {[%emt 0:06:21]} 8. cxd5 {[%emt 0:01:33]} Nxd5 {[%emt 0:00:41]} 9. Nxd5 {[%emt 0:04:05]} exd5 {[%emt 0:02:19]} 10. a3 {[%emt 0:00:15] Prevents Bb4+.} Be7 {[%emt 0:18:05]} 11. Bg2 {[%emt 0:02:22]} O-O {[%emt 0:02:28]} 12. O-O {[%emt 0:00:30] [#]} Rd8 $146 {[%emt 0:04:43]} ({Predecessor:} 12... Bf6 13. a4 Rd8 14. Ra3 Nxd4 15. exd4 Qb4 16. a5 Be6 17. Rb3 Qxa5 18. Rxb7 Qa6 {½-½ (31) Seiler,W (1895)-Beckmann,M (1721) GER email 2010}) 13. b3 {[%emt 0:10:18]} Nxd4 {[%emt 0:01:34]} 14. exd4 {[%emt 0:00:14]} Be6 {[%emt 0:01:15]} 15. Re1 {[%emt 0:01:36]} Bf6 {[%emt 0:04:43]} 16. Be3 {[%emt 0:00:37]} g6 {[%emt 0:01:52]} 17. b4 {[%emt 0:02:41]} Rdc8 {[%emt 0:09:48]} 18. Qd2 {[%emt 0:01:22]} Rc6 {[%emt 0:01:30]} 19. Rac1 {[%emt 0:00:42]} Rxc1 {[%emt 0:04:51]} 20. Rxc1 {[%emt 0:00:11]} a5 {[%emt 0:00:10]} 21. h4 {[%emt 0:07:52]} h5 {[%emt 0:00:37]} 22. Rc5 {[%emt 0:04:05][%cal Rb4a5]} axb4 {[%emt 0:00:59]} 23. Qxb4 {[%emt 0:00:13]} Qxb4 {[%emt 0:11:23]} 24. axb4 {[%emt 0:00:24]} b6 {[%emt 0:08:05]} 25. Rc6 {[%emt 0:01:32]} Rb8 {[%emt 0:00:44]} 26. Kh2 {[%emt 0:02:13]} Be7 {[%emt 0:01:31]} (26... b5 $14) 27. Bd2 {[%emt 0:00:09]} ({White should try} 27. b5 $16) 27... Kf8 {[%emt 0:01:06] The position is equal.} 28. Bf1 {[%emt 0:06:16]} (28. Bf4 $5 {[%cal Rf4b8]} Rb7 29. b5 $11) 28... Bd7 {[%emt 0:02:47]} 29. Rc7 {[%emt 0:01:57]} Ke8 {[%emt 0:00:24]} 30. Bg2 {[%emt 0:06:07]} Be6 {[%emt 0:02:38]} 31. Bf1 {[%emt 0:03:54] Weighted Error Value: White=0.09 (flawless) /Black=0.06 (flawless)} 1/2-1/2

[Event "39th Muensterland Open 2022"]
[Site "Muenster"]
[Date "2022.10.06"]
[Round "7.5"]
[White "Scholz, Christian"]
[Black "Mueller, Martin"]
[Result "1-0"]
[ECO "A87"]
[WhiteElo "2332"]
[BlackElo "2130"]
[Annotator "TA"]
[PlyCount "59"]
[EventDate "2022.10.01"]
[EventType "swiss"]
[EventCountry "GER"]
[SourceTitle "playchess.com"]
[Source "ChessBase"]
[SourceQuality "1"]
[TimeControl "40/5400+30:1800+30"]

{[%evp 16,59,22,19,60,32,118,125,126,116,144,129,132,123,122,125,114,116,148,141,167,142,189,165,196,195,245,235,235,184,168,152,177,137,125,122,186,165,260,199,436,443,421,413,1141,895]} 1. d4 {[%emt 0:00:02]} f5 {[%emt 0:00:07]} 2. Nf3 {[%emt 0:00:05]} Nf6 {[%emt 0:00:06]} 3. c4 {[%emt 0:00:05]} g6 {[%emt 0:00:09]} 4. g3 {[%emt 0:00:05]} Bg7 {[%emt 0:00:06]} 5. Bg2 {[%emt 0:00:04]} O-O {[%emt 0:00:08]} 6. O-O {[%emt 0:00:04]} d6 {[%emt 0:00:24]} 7. Nc3 {[%emt 0:00:07]} Qe8 {[%emt 0:00:12] 7...Qe8 has become a bit dusty these days.} 8. d5 {[%emt 0:00:07]} Na6 {[%emt 0:00:52]} 9. Rb1 {[%emt 0:00:16] 9.Be3 is vanishing.} h6 {[%emt 0:04:39] A87: Dutch Defence: Leningrad System: 5 Nf3.} 10. b4 {[%emt 0:09:22] [#]} Nh5 $146 {[%emt 0:02:19]} (10... e5 $14) ({Predecessor:} 10... Bd7 11. Nd4 Rc8 12. Ncb5 Ne4 13. Bxe4 fxe4 14. Nxa7 Ra8 15. Nab5 c6 16. dxc6 bxc6 17. Nc3 {0-1 (46) Ramirez Alvarez,R (2043)-Hidalgo Santana,F (2193) Santa Cruz de Tenerife 2015}) 11. Nd4 $16 {[%emt 0:03:05]} f4 {[%emt 0:02:52] White is better.} 12. Qd3 {[%emt 0:07:55]} g5 {[%emt 0:11:13]} 13. Be4 {[%emt 0:05:26]} Bxd4 {[%emt 0:09:35]} 14. Qxd4 {[%emt 0:07:39]} fxg3 {[%emt 0:03:59]} 15. hxg3 {[%emt 0:00:52]} Nf6 {[%emt 0:06:42]} 16. Bg2 {[%emt 0:08:54] White is more active.} Qh5 {[%emt 0:01:57] [#] White must now prevent ...Ng4.} 17. f3 {[%emt 0:09:54] Against Ng4} Bh3 {[%emt 0:02:42]} 18. Bd2 {[%emt 0:08:40]} Bd7 {[%emt 0:08:51]} (18... Bxg2 $16 19. Kxg2 Qg6) 19. Ne4 $18 {[%emt 0:05:27]} Qg6 {[%emt 0:03:49]} 20. Bc3 {[%emt 0:01:12]} c6 {[%emt 0:01:57]} (20... Kh7 $142 21. Nxf6+ Qxf6) 21. Nxf6+ {[%emt 0:06:23]} Rxf6 {[%emt 0:00:34]} 22. dxc6 {[%emt 0:02:10]} bxc6 {[%emt 0:00:19]} 23. c5 {[%emt 0:00:28]} Nc7 {[%emt 0:01:33]} 24. Qd2 {[%emt 0:04:46]} (24. cxd6 $6 Nb5 25. Qc4+ Qf7 26. Qxf7+ Rxf7 $16) 24... Rf7 {[%emt 0:01:12]} 25. Rbd1 {[%emt 0:02:05][%cal Rc5d6]} Ne8 {[%emt 0:08:35]} (25... Nd5 $16) 26. f4 {[%emt 0:02:50]} Rc8 {[%emt 0:01:02]} (26... gxf4 $142 27. cxd6 (27. Rxf4 Qxg3 28. Rxf7 Kxf7 $16) (27. Qd4 e5 $16) 27... Nxd6) 27. fxg5 $40 {[%emt 0:04:11][%mdl 128] White attacks with force.} Rxf1+ {[%emt 0:00:19]} (27... Qxg5 28. Qd4 (28. cxd6 Qxd2 29. Bxd2 Nxd6 $16) 28... e5) 28. Rxf1 {[%emt 0:00:33]} ({Weaker is} 28. Bxf1 Qxg5 29. Bg2 Qxd2 30. Rxd2 (30. Bxd2 Kh7 $16) 30... h5 $16) 28... Qxg5 {[%emt 0:03:27]} 29. Qd4 {[%emt 0:03:21][%csl Gc3][%cal Rd4h8] [#]} e5 {[%emt 0:01:14]} (29... Ng7 $142 30. cxd6 (30. Qf2 dxc5 31. bxc5 Be6 $16) 30... exd6 31. Qxd6 (31. Qf2 Be6 $16) 31... Qe3+ 32. Kh2 Qxc3) 30. Qc4+ {[%emt 0:01:26] Weighted Error Value: White=0.14 (very precise) /Black=0.36} 1-0

[Event "39th Muensterland Open 2022"]
[Site "Muenster"]
[Date "2022.10.06"]
[Round "7.6"]
[White "Junk, Phillip"]
[Black "Bentel, Robin"]
[Result "1/2-1/2"]
[ECO "B51"]
[WhiteElo "2085"]
[BlackElo "2247"]
[Annotator "TA"]
[PlyCount "90"]
[EventDate "2022.10.01"]
[EventType "swiss"]
[EventCountry "GER"]
[SourceTitle "playchess.com"]
[Source "ChessBase"]
[SourceQuality "1"]
[TimeControl "40/5400+30:1800+30"]

{[%evp 9,90,-4,22,0,14,0,-2,-16,-20,-21,-9,-25,-34,-33,-28,-45,-6,-15,0,-42,-43,-82,-79,-132,-102,-149,-149,-150,-150,-151,-152,-152,-70,-88,-89,-211,-120,-245,-89,-184,-170,-233,-191,-190,-192,-210,-159,-164,-115,-160,-114,-141,-133,-156,-180,-224,-220,-693,-684,-623,-649,-539,-95,-124,-79,-61,0,0,0,-201,0,0,0,0,0,0,0,0,0,0,0,0,0]} 1. e4 {[%emt 0:00:02]} c5 {[%emt 0:00:12]} 2. Nf3 {[%emt 0:00:07]} d6 {[%emt 0:00:08]} 3. Bb5+ {[%emt 0:00:05]} Nd7 {[%emt 0:00:20]} 4. c3 {[%emt 0:00:18]} Ngf6 {[%emt 0:00:10]} 5. d3 {[%emt 0:00:25]} g6 {[%emt 0:01:21]} 6. O-O {[%emt 0:00:57] B51: Sicilian: Moscow Variation (3 Bb5+) without 3...Bd7.} Bg7 {[%emt 0:00:14]} 7. h3 {[%emt 0:01:01]} ({Much weaker is} 7. e5 dxe5 8. Nxe5 O-O 9. Nxd7 Bxd7 $15) 7... a6 {[%emt 0:01:10]} 8. Ba4 {[%emt 0:01:15]} b5 {[%emt 0:00:20]} 9. Bc2 {[%emt 0:00:16]} O-O {[%emt 0:00:18]} 10. Be3 {[%emt 0:01:45]} Bb7 {[%emt 0:01:28]} 11. Nbd2 {[%emt 0:02:10] [#]} e5 $146 {[%emt 0:03:30]} ({Predecessor:} 11... Qc7 12. Rc1 Nb6 13. Qe2 Rac8 14. Rfd1 Nfd7 15. Nf1 Ba8 16. Qd2 Ne5 17. Nxe5 dxe5 {½-½ (36) Pinter,T (1632)-Rajcsanyi,P (1833) Budapest 2015}) 12. Re1 {[%emt 0:12:17]} Re8 {[%emt 0:08:43]} 13. c4 {[%emt 0:04:08]} Nf8 {[%emt 0:03:55]} 14. Nh2 {[%emt 0:07:52]} Ne6 {[%emt 0:03:43]} 15. Ng4 {[%emt 0:00:59]} Nh5 {[%emt 0:03:43]} 16. Bh6 {[%emt 0:16:08]} (16. a3 $142) 16... Nhf4 {[%emt 0:01:25]} 17. Bxg7 {[%emt 0:01:14]} ({Better is} 17. Bxf4 exf4 18. Rb1) 17... Kxg7 $17 {[%emt 0:02:06]} 18. Ne3 {[%emt 0:01:00] Prevents f5.} Nd4 {[%emt 0:13:34]} 19. Nf3 {[%emt 0:06:21]} f5 {[%emt 0:01:09]} 20. Nd5 {[%emt 0:07:41]} Nde6 {[%emt 0:53:01]} (20... Nxf3+ $17 21. Qxf3 Ne6) 21. b3 {[%emt 0:05:56]} Rf8 {[%emt 0:00:00]} 22. Ne3 {[%emt 0:02:14]} (22. Kh2 $17 {was called for.}) 22... Qf6 {[%emt 0:00:00]} (22... Nd4 $19 23. Nxd4 cxd4) 23. Kh2 {[%emt 0:07:26] [#]} (23. Nd5 $17 Qf7 24. Re3) 23... Rad8 $2 {[%emt 0:00:00]} (23... Nxg2 $1 $19 {[%mdl 512] has better winning chances.} 24. Kxg2 (24. Nxg2 fxe4) 24... fxe4 25. dxe4 Nd4) 24. Ng1 {[%emt 0:10:05]} (24. Nd5 $17 Qf7 25. Rf1) 24... Nd4 $19 {[%emt 0:00:00]} 25. Qd2 {[%emt 0:01:13]} (25. Rf1 $142) 25... fxe4 {[%emt 0:00:00]} 26. dxe4 {[%emt 0:00:33]} Qg5 {[%emt 0:00:00][%cal Of4g2] Strongly threatening ...Nxg2!} 27. Rad1 {[%emt 0:00:40]} Rf7 {[%emt 0:00:00]} 28. f3 {[%emt 0:01:18]} h5 {[%emt 0:00:00]} (28... Qh4 $19 {[%cal Of4h3] aiming for ...Nxh3!} 29. Bd3 Rdf8) 29. Qf2 {[%emt 0:00:45]} Bc8 {[%emt 0:00:00]} (29... h4 $142 30. Bb1 Rff8) 30. cxb5 {[%emt 0:00:35]} axb5 {[%emt 0:00:00]} 31. Bd3 {[%emt 0:00:08]} Rdf8 {[%emt 0:00:00]} 32. Qg3 {[%emt 0:00:38]} Qd8 {[%emt 0:00:00]} 33. Nd5 $2 {[%emt 0:01:09]} (33. Qf2) 33... h4 {[%emt 0:00:20]} 34. Qf2 {[%emt 0:00:18] [#]} Nxh3 {[%emt 0:01:46][%mdl 512]} 35. gxh3 {[%emt 0:02:18]} (35. Nxh3 Bxh3) 35... Nxf3+ $2 {[%emt 0:00:52]} (35... Rxf3 $19 36. Nxf3 Rxf3) 36. Kh1 $17 {[%emt 0:02:26]} Nxe1 {[%emt 0:00:44]} 37. Qxe1 {[%emt 0:00:17]} b4 {[%emt 0:02:47]} (37... Be6 $15) 38. Rd2 $11 {[%emt 0:00:26]} Be6 {[%emt 0:00:57]} 39. Bc4 {[%emt 0:00:54]} (39. Rg2 $11 {and White is okay.}) 39... Qg5 $2 {[%emt 0:01:08]} ({Black should try} 39... Bxd5 $19 40. Bxd5 Rf1) 40. Rg2 {[%emt 0:01:27] The position is equal.} Qh6 {[%emt 0:00:04]} 41. Ne3 {[%emt 0:04:36] Pair of Knights!} Bxc4 {[%emt 0:00:30]} 42. bxc4 {[%emt 0:02:16]} Kh7 {[%emt 0:04:48]} 43. Ng4 {[%emt 0:06:42]} Qg5 {[%emt 0:01:12] Threatens to win with ...Rf1.} 44. Qd1 {[%emt 0:00:49]} Qe7 $1 {[%emt 0:26:52]} 45. Ne3 {[%emt 0:05:47]} Qe6 {[%emt 0:00:00] White happily takes the draw.  Weighted Error Value: White=0.45/Black=0.35} 1/2-1/2

[Event "39th Muensterland Open 2022"]
[Site "Muenster"]
[Date "2022.10.06"]
[Round "7.7"]
[White "Weidemann, Jakob"]
[Black "Kummerow, Heiko"]
[Result "1/2-1/2"]
[ECO "C07"]
[WhiteElo "2084"]
[BlackElo "2208"]
[Annotator "TA"]
[PlyCount "61"]
[EventDate "2022.10.01"]
[EventType "swiss"]
[EventCountry "GER"]
[SourceTitle "playchess.com"]
[Source "ChessBase"]
[SourceQuality "1"]
[TimeControl "40/5400+30:1800+30"]

{[%evp 10,61,16,16,16,14,17,10,17,18,21,18,12,18,29,20,37,-13,5,6,6,8,8,2,6,6,5,5,6,6,12,6,6,0,0,1,0,1,0,1,1,0,0,0,0,0,8,8,8,0,8,0,8,0]} 1. e4 {[%emt 0:00:03]} e6 {[%emt 0:00:08]} 2. d4 {[%emt 0:00:08]} d5 {[%emt 0:00:10]} 3. Nd2 {[%emt 0:00:10]} c5 {[%emt 0:00:20]} 4. exd5 {[%emt 0:00:12]} Qxd5 {[%emt 0:00:05]} 5. Ngf3 {[%emt 0:00:14]} cxd4 {[%emt 0:00:08]} 6. Bc4 {[%emt 0:00:13]} Qd7 {[%emt 0:00:08] C07: French Tarrasch: 3...c5, 4 Ngf3 and 4 exd5 Qxd5.} 7. O-O {[%emt 0:00:10]} Nc6 {[%emt 0:00:22]} 8. Nb3 {[%emt 0:00:08]} a6 {[%emt 0:00:20]} 9. Nbxd4 {[%emt 0:01:23]} (9. Bf4 {feels hotter.} Nf6 10. a4 Bd6 11. Bxd6 Qxd6 12. Nbxd4 Bd7 13. Nxc6 Qxc6 14. Ne5) 9... Nxd4 {[%emt 0:00:09]} 10. Qxd4 {[%emt 0:02:18]} Qxd4 {[%emt 0:00:19]} 11. Nxd4 {[%emt 0:00:10]} Bd7 $1 {[%emt 0:00:07] The main line 11...Bd7 scores better than 11...Nf6.} 12. Be2 {[%emt 0:00:44]} Ne7 {[%emt 0:14:12] [#]} 13. b3 $146 {[%emt 0:11:06]} ({White should play} 13. c3 $14) ({Predecessor:} 13. Bf3 Nc6 14. Nxc6 Bxc6 15. Bxc6+ bxc6 16. Rd1 Bc5 17. Bf4 Ke7 18. Rd3 Rhd8 19. Rad1 {½-½ (56) Martins,B (2284)-Briem,S (2199) Corum 2019}) 13... Nc6 {[%emt 0:07:59] The position is equal.} (13... e5 $5 14. Nf3 $8 f6 $11) 14. Bb2 {[%emt 0:02:57]} Bc5 {[%emt 0:07:00]} 15. Rfd1 {[%emt 0:05:56]} Nxd4 {[%emt 0:02:36]} 16. Bxd4 {[%emt 0:00:09]} Bxd4 {[%emt 0:00:14]} 17. Rxd4 {[%emt 0:00:10]} Ke7 {[%emt 0:32:58]} 18. Bf3 {[%emt 0:02:16]} Rab8 {[%emt 0:01:14]} 19. Rad1 {[%emt 0:01:12]} Rhd8 {[%emt 0:00:36]} 20. c4 {[%emt 0:04:49]} b6 {[%emt 0:03:44]} 21. b4 {[%emt 0:06:02]} Ba4 {[%emt 0:03:01]} 22. Rxd8 {[%emt 0:00:21]} Rxd8 {[%emt 0:00:05]} 23. Rxd8 {[%emt 0:00:13]} Kxd8 $11 {[%emt 0:00:05][%mdl 4096] Endgame KB-KB} 24. Kf1 {[%emt 0:04:30]} Kc7 {[%emt 0:00:32]} 25. Ke2 {[%emt 0:03:41]} a5 {[%emt 0:01:39]} 26. a3 {[%emt 0:02:21]} axb4 {[%emt 0:00:07]} 27. axb4 {[%emt 0:00:16]} Bd7 {[%emt 0:01:30]} 28. Ke3 {[%emt 0:00:41]} Kd6 {[%emt 0:00:17]} 29. Be2 {[%emt 0:01:15]} Bc6 {[%emt 0:02:29]} 30. Bf3 {[%emt 0:00:25]} Bd7 {[%emt 0:00:11]} 31. Ke4 {[%emt 0:29:02] Not much happened in this game.  Weighted Error Value: White=0.04 (flawless) /Black=0.03 (flawless)} 1/2-1/2

[Event "39th Muensterland Open 2022"]
[Site "Muenster"]
[Date "2022.10.06"]
[Round "7.8"]
[White "Gallasch, Robin"]
[Black "Panjer, Sidney"]
[Result "1-0"]
[ECO "D02"]
[WhiteElo "2021"]
[BlackElo "2197"]
[Annotator "TA"]
[PlyCount "67"]
[EventDate "2022.10.01"]
[EventType "swiss"]
[EventCountry "GER"]
[SourceTitle "playchess.com"]
[Source "ChessBase"]
[SourceQuality "1"]
[TimeControl "40/5400+30:1800+30"]

{[%evp 9,67,32,60,26,40,9,34,13,35,-7,0,0,14,-8,5,-7,-6,-10,-10,-10,-10,-9,-5,-5,5,0,5,5,6,0,9,18,12,12,67,70,160,40,40,43,99,94,112,95,137,137,409,410,699,703,1556,945,1346,840,1035,978,29992,29993,29994,29995]} 1. Nf3 {[%emt 1:31:00]} Nf6 {[%emt 0:00:11]} 2. g3 {[%emt 0:00:12]} d5 {[%emt 0:08:33]} 3. Bg2 {[%emt 0:00:08]} Nbd7 {[%emt 0:00:05]} 4. d4 {[%emt 0:02:02]} Nb6 {[%emt 0:03:35]} 5. O-O {[%emt 0:01:58]} Bf5 {[%emt 0:00:48]} 6. b3 {[%emt 0:06:28] D02: 1 d4 d5 2 Nf3 sidelines, including 2...Nf6 3 g3 and 2...Nf6 3 Bf4.} e6 {[%emt 0:02:38]} 7. a4 {[%emt 0:05:30]} a5 {[%emt 0:01:45] [#]} 8. Ne5 $146 {[%emt 0:12:00] White is slightly better.} ({Predecessor:} 8. Bb2 Be7 9. Nbd2 O-O 10. e3 h6 11. Rc1 c6 12. Qe2 Nbd7 13. c4 Qb6 14. Ne1 {0-1 (55) Babazada,K (2431)-Dobrov,V (2478) Chess.com INT 2022}) 8... Be7 {[%emt 0:02:37]} 9. Ba3 {[%emt 0:00:14]} O-O {[%emt 0:02:08]} 10. e3 {[%emt 0:03:04]} h6 {[%emt 1:13:10]} 11. Qe2 {[%emt 1:04:19]} c6 {[%emt 0:01:33]} 12. c4 {[%emt 1:01:07]} Bxa3 {[%emt 0:04:59]} 13. Nxa3 {[%emt 0:00:16]} Nbd7 {[%emt 0:01:07]} 14. Nd3 {[%emt 0:01:39]} Re8 {[%emt 0:06:17]} 15. Rfd1 {[%emt 0:04:24]} Qe7 {[%emt 0:08:53]} 16. Nc2 {[%emt 0:12:11][%cal Ba3c2,Bc2d4,Bd4e2,Be2f4][%mdl 32]} e5 {[%emt 0:12:16]} 17. dxe5 {[%emt 0:08:52]} (17. Nxe5 {looks sharper.} Nxe5 18. dxe5 Qxe5 19. cxd5 Bg4 20. f3) 17... Nxe5 {[%emt 0:04:22]} 18. Nxe5 {[%emt 0:00:07]} Qxe5 {[%emt 0:00:10]} 19. cxd5 {[%emt 0:03:27]} Nxd5 {[%emt 0:06:39]} 20. Bxd5 {[%emt 0:00:24]} cxd5 {[%emt 0:00:07]} 21. Nd4 {[%emt 0:00:07]} Be4 {[%emt 0:00:54]} (21... Bd7 $11) 22. Rac1 {[%emt 0:05:56]} Rad8 {[%emt 0:03:49]} (22... h5 $14) 23. f3 {[%emt 0:02:30]} ({White should try} 23. Qb5 $16) 23... Bg6 $14 {[%emt 0:01:32]} 24. Kf2 {[%emt 0:02:46]} Re7 {[%emt 0:05:54]} (24... Rc8 $14) 25. Qd2 {[%emt 0:00:45]} Rd6 {[%emt 0:05:05]} 26. Ne2 {[%emt 0:01:11]} Qh5 {[%emt 0:11:57]} 27. h4 {[%emt 0:01:03]} Be4 $2 {[%emt 0:02:30][%mdl 8192] [#] This move loses the game for Black.} (27... Qe5 $16 {was called for.} 28. Nf4 Kh7) 28. fxe4 $18 {[%emt 0:00:47]} Rf6+ {[%emt 0:00:24]} (28... Rxe4 $142 29. Nf4 (29. Qxa5 Rxe3 30. Qa8+ Kh7 $17) 29... Qg4 30. Nxd5 Kh7) 29. Nf4 {[%emt 0:00:34]} g5 {[%emt 0:00:34]} 30. Qxd5 {[%emt 0:01:08]} Kg7 {[%emt 0:00:25]} 31. Rh1 {[%emt 0:01:31] [#] Black must now prevent Rc8.} ({And not} 31. Kg2 Rxf4 32. Qd4+ (32. exf4 Qe2+ 33. Kh1 Qf3+ 34. Kg1 Qxg3+ 35. Kh1 Qf3+ 36. Kh2 Qe2+ 37. Kg3 Qe3+ 38. Kh2 Qe2+ 39. Kh1 Qf3+ 40. Kh2 Qxf4+ 41. Kg2 Qg4+ 42. Kf2 Rxe4 $11) 32... Rf6 33. hxg5 Qf3+ 34. Kh3 Qh5+ 35. Kg2 Qf3+ 36. Kh3 Qh5+ 37. Kg2 $11) 31... Qg4 {[%emt 0:00:37] Inhibits Rc8.} 32. hxg5 {[%emt 0:00:15]} hxg5 {[%emt 0:01:02]} 33. Qd8 {[%emt 0:01:56][%csl Gh1][%cal Rd8h8]} Rxf4+ {[%emt 0:00:33]} 34. gxf4 {[%emt 0:00:10] Weighted Error Value: White=0.21 (precise) /Black=0.65} 1-0